bitfinex/quotes_SOLUSD_20250527
["timestamp","ask_amount","ask_price","bid_price","bid_amount"]
[1748316039569,2.30441295,173.58,173.44,28.82750079]
[1748316039570,18.64964886,173.57,173.46,1.5433]
[1748316039893,21.02365515,173.52,173.47,34.56]
[1748316040207,18.64964886,173.55,173.46,1.5433]
[1748316040496,39.67330401,173.53,173.48,55.58365515]
[1748316040801,21.02365515,173.52,173.48,34.56]
[1748316041993,2.30534263,173.51,173.48,34.56]
[1748316042297,2.30534263,173.51,173.48,55.58365515]
[1748316043388,18.64964886,173.54,173.5,21.02365515]
[1748316043892,2.3049441,173.54,173.53,21.02365515]
[1748316044081,2.3049441,173.54,173.53,55.58365515]
[1748316044612,2.3049441,173.54,173.53,34.56]
[1748316044899,3.2978519,173.55,173.53,55.58365515]
[1748316045077,3.2978519,173.55,173.54,22.56465515]
[1748316045781,18.64964886,173.61,173.54,22.56465515]
[1748316046119,2.30414746,173.6,173.58,21.02365515]
[1748316046402,2.30414746,173.6,173.56,26.0]
[1748316046403,2.30414746,173.6,173.59,55.58365515]
[1748316047001,2.30401474,173.61,173.59,55.58365515]
[1748316047189,2.30401474,173.61,173.6,21.02365515]
[1748316047889,2.30401474,173.61,173.6,31.12441449]
[1748316048276,2.30401474,173.61,173.59,34.56]
[1748316048587,18.64964886,173.6,173.56,65.68441449]
[1748316048771,18.64964886,173.6,173.56,31.12441449]
[1748316048978,5.76202823,173.55,173.49,32.76711449]
[1748316049171,31.12441449,173.54,173.49,1.6427]
[1748316049477,2.30467849,173.56,173.52,31.12441449]
[1748316049683,18.64964886,173.55,173.52,34.56]
[1748316049919,31.12441449,173.55,173.52,34.56]
[1748316050132,18.64964886,173.54,173.5,31.12441449]
[1748316050434,18.64964886,173.53,173.51,34.56]
[1748316050805,18.64964886,173.53,173.5,34.56]
[1748316051005,2.30520977,173.52,173.5,34.56]
[1748316052103,49.77406335,173.51,173.42,1.5812]
[1748316052320,31.12441449,173.47,173.42,1.5812]
[1748316052513,18.64964886,173.48,173.44,31.12441449]
[1748316052735,18.64964886,173.5,173.46,31.12441449]
[1748316053037,2.30574129,173.48,173.44,31.12441449]
[1748316053223,33.43015578,173.48,173.43,34.56]
[1748316053434,33.43015578,173.48,173.44,34.56]
[1748316053435,18.64964886,173.47,173.44,34.56]
[1748316053801,18.64964886,173.47,173.43,31.12441449]
[1748316054006,49.77406335,173.47,173.44,34.56]
[1748316054313,18.64964886,173.47,173.44,34.56]
[1748316054732,49.77406335,173.47,173.44,34.56]
[1748316055031,18.64964886,173.47,173.44,34.56]
[1748316055336,2.30600714,173.46,173.43,34.56]
[1748316056232,8.07195571,173.44,173.37,1.6596]
[1748316056531,8.07195571,173.44,173.4,26.0]
[1748316056718,8.07195571,173.44,173.4,57.12441449]
[1748316057047,8.07195571,173.44,173.41,31.12441449]
[1748316057224,8.07195571,173.44,173.42,65.68441449]
[1748316057634,8.07195571,173.44,173.37,100.8796]
[1748316057635,49.77406335,173.43,173.37,100.8796]
[1748316057836,31.12441449,173.42,173.37,166.58401449]
[1748316058036,31.12441449,173.42,173.37,164.92441449]
[1748316058239,57.84741551,173.41,173.37,99.22]
[1748316058434,31.12441449,173.4,173.37,99.22]
[1748316058653,31.12441449,173.39,173.37,59.0]
[1748316058953,26.72300102,173.41,173.35,8.33333333]
[1748316058954,18.64964886,173.37,173.35,8.33333333]
[1748316059124,49.77406335,173.37,173.35,8.33333333]
[1748316059331,31.12441449,173.39,173.35,8.33333333]
[1748316059936,18.64964886,173.38,173.35,8.33333333]
[1748316060451,2.30709519,173.38,173.35,8.33333333]
[1748316061655,20.95674405,173.38,173.35,8.33333333]
[1748316062456,20.95674405,173.38,173.35,39.45774782]
[1748316064059,20.95674405,173.38,173.35,8.33333333]
[1748316067363,2.30709519,173.38,173.35,8.33333333]
[1748316068272,2.30693811,173.39,173.35,8.33333333]
[1748316069054,2.30679425,173.41,173.37,31.12441449]
[1748316069260,20.95616836,173.43,173.4,31.12441449]
[1748316070166,20.95616836,173.43,173.39,31.12441449]
[1748316071673,31.12441449,173.41,173.36,26.0]
[1748316071854,31.12441449,173.41,173.35,8.33333333]
[1748316071855,31.12441449,173.38,173.35,8.33333333]
[1748316072465,18.64964886,173.38,173.35,8.33333333]
[1748316072785,8.0725346,173.43,173.35,39.45774782]
[1748316072964,49.77406335,173.4,173.36,31.12441449]
[1748316073170,49.77406335,173.4,173.35,39.45774782]
[1748316073777,33.4313526,173.39,173.35,8.33333333]
[1748316073965,31.12441449,173.38,173.35,8.33333333]
[1748316074279,33.4313526,173.39,173.35,8.33333333]
[1748316075671,2.30693811,173.39,173.35,8.33333333]
[1748316075881,33.4313526,173.39,173.35,8.33333333]
[1748316076271,2.30693811,173.39,173.36,31.12441449]
[1748316077675,2.30693811,173.39,173.35,67.33333333]
[1748316077879,2.30693811,173.39,173.36,31.12441449]
[1748316078582,2.30693811,173.39,173.37,31.12441449]
[1748316078786,2.30681468,173.4,173.38,31.12441449]
[1748316078950,2.30681468,173.4,173.39,31.12441449]
[1748316079155,2.30681468,173.4,173.35,93.33333333]
[1748316079156,2.30681468,173.4,173.38,31.12441449]
[1748316079376,2.30681468,173.4,173.37,34.6]
[1748316079377,3.00318556,173.41,173.39,31.12441449]
[1748316079960,5.30989263,173.41,173.39,31.12441449]
[1748316081171,18.64964886,173.47,173.4,31.12441449]
[1748316081484,18.64964886,173.47,173.44,31.12441449]
[1748316081979,2.30587421,173.47,173.45,31.12441449]
[1748316082279,2.3057398,173.49,173.46,31.12441449]
[1748316082464,2.3057398,173.49,173.47,31.12441449]
[1748316082972,2.3057398,173.49,173.46,31.12441449]
[1748316084273,2.3057398,173.49,173.47,31.12441449]
[1748316086263,2.3054755,173.5,173.45,93.6]
[1748316086464,2.3054755,173.5,173.47,31.12441449]
[1748316087276,8.06884322,173.51,173.47,31.12441449]
[1748316087687,2.30534263,173.51,173.47,31.12441449]
[1748316087897,2.30534263,173.51,173.47,21.04019564]
[1748316088090,2.30534263,173.51,173.48,21.04019564]
[1748316088297,2.3049441,173.54,173.5,21.04019564]
[1748316088592,2.3049441,173.54,173.52,21.04019564]
[1748316088971,2.3049441,173.54,173.5,55.62019564]
[1748316089996,2.3049441,173.54,173.5,65.74172245]
[1748316090472,2.3049441,173.54,173.51,31.16172245]
[1748316091075,8.06730436,173.54,173.5,65.74172245]
[1748316091299,49.81137131,173.53,173.5,34.58]
[1748316091596,18.64964886,173.51,173.47,57.16172245]
[1748316091804,18.64964886,173.51,173.48,34.58]
[1748316092330,33.46719795,173.5,173.45,40.66]
[1748316092496,31.16172245,173.48,173.43,31.16172245]
[1748316092813,31.16172245,173.48,173.44,34.58]
[1748316093109,31.16172245,173.45,173.4,42.2011]
[1748316093321,20.57461045,173.45,173.41,34.58]
[1748316093479,18.64964886,173.47,173.43,31.16172245]
[1748316094620,2.30600714,173.46,173.42,31.16172245]
[1748316095104,2.30600714,173.46,173.41,34.58]
[1748316095291,33.46772959,173.46,173.42,31.16172245]
[1748316095496,2.30600714,173.46,173.42,31.16172245]
[1748316096009,8.07102501,173.46,173.42,31.16172245]
[1748316096219,8.07102501,173.46,173.41,34.58]
[1748316096382,8.07102501,173.46,173.42,31.16172245]
[1748316097107,8.07102501,173.46,173.41,34.58]
[1748316097316,31.16172245,173.44,173.4,40.56]
[1748316097488,18.64964886,173.43,173.39,57.16172245]
[1748316097682,18.64964886,173.43,173.4,34.58]
[1748316097885,31.16172245,173.44,173.36,1.5073]
[1748316097886,31.16172245,173.42,173.38,34.58]
[1748316098122,2.30667204,173.41,173.37,31.16172245]
[1748316098322,2.30667204,173.41,173.38,65.74172245]
[1748316098608,6.1147,173.47,173.38,65.74172245]
[1748316098609,18.64964886,173.48,173.4,88.3234449]
[1748316098814,18.64964886,173.48,173.4,26.0]
[1748316098987,18.64964886,173.48,173.44,31.16172245]
[1748316099183,18.64964886,173.48,173.44,65.74172245]
[1748316099404,24.41416769,173.48,173.44,65.74172245]
[1748316099607,55.57589014,173.48,173.44,34.58]
[1748316100008,55.57589014,173.48,173.44,65.74172245]
[1748316100009,24.41416769,173.48,173.44,65.74172245]
[1748316100319,26.71990898,173.48,173.44,65.74172245]
[1748316100723,2.30574129,173.48,173.45,31.16172245]
[1748316100909,2.30574129,173.48,173.47,31.16172245]
[1748316101700,2.30574129,173.48,173.46,31.16172245]
[1748316102224,2.30560839,173.49,173.46,31.16172245]
[1748316103208,2.30560839,173.49,173.47,31.16172245]
[1748316103715,2.30560839,173.49,173.46,31.16172245]
[1748316104025,2.30560839,173.49,173.47,31.16172245]
[1748316106611,2.30560839,173.49,173.48,31.16172245]
[1748316106828,2.30560839,173.49,173.48,65.74172245]
[1748316107243,2.30534263,173.51,173.48,65.74172245]
[1748316112038,2.30534263,173.51,173.48,55.61786474]
[1748316112734,23.34320737,173.51,173.48,34.58]
[1748316113235,23.34320737,173.51,173.44,1.5487]
[1748316113236,2.30534263,173.51,173.44,1.5487]
[1748316113434,21.03786474,173.49,173.44,1.5487]
[1748316113751,21.03786474,173.49,173.45,34.58]
[1748316114120,2.30574129,173.48,173.45,55.61786474]
[1748316114521,2.30574129,173.48,173.46,21.03786474]
[1748316114843,2.30574129,173.48,173.46,55.61786474]
[1748316115137,2.30574129,173.48,173.47,34.58]
[1748316115344,8.0182,173.54,173.47,55.61786474]
[1748316115345,2.30520977,173.52,173.47,55.61786474]
[1748316115520,20.95485863,173.52,173.48,21.03786474]
[1748316115839,2.30520977,173.52,173.48,21.03786474]
[1748316116043,2.30520977,173.52,173.49,21.03786474]
[1748316116336,2.30520977,173.52,173.5,55.61786474]
[1748316117240,8.06745205,173.54,173.5,55.61786474]
[1748316117824,2.3049441,173.54,173.51,21.03786474]
[1748316118747,2.3049441,173.54,173.5,55.61786474]
[1748316119729,21.03786474,173.52,173.5,34.58]
[1748316120344,18.64964886,173.5,173.44,48.58656474]
[1748316120544,8.06730436,173.54,173.41,46.9223]
[1748316120545,21.03786474,173.48,173.45,34.58]
[1748316120848,18.64964886,173.48,173.45,34.58]
[1748316121142,18.64964886,173.48,173.44,21.03786474]
[1748316121347,21.03786474,173.47,173.43,21.03786474]
[1748316121550,2.30600714,173.46,173.44,34.58]
[1748316123254,8.07102501,173.46,173.42,26.0]
[1748316123556,29.10888975,173.46,173.43,34.58]
[1748316124349,8.07102501,173.46,173.42,21.03786474]
[1748316124556,8.07102501,173.46,173.43,34.58]
[1748316125949,2.30600714,173.46,173.45,21.03786474]
[1748316126150,2.30589409,173.47,173.45,80.03786474]
[1748316126360,2.30589409,173.47,173.46,55.61786474]
[1748316126767,2.30589409,173.47,173.46,34.58]
[1748316127855,41.99325489,173.48,173.45,59.0]
[1748316128059,18.64964886,173.45,173.4,59.0]
[1748316128256,21.03786474,173.41,173.36,99.26]
[1748316128456,39.6875136,173.39,173.36,34.58]
[1748316128658,18.64964886,173.39,173.36,34.58]
[1748316128954,18.64964886,173.39,173.35,80.03786474]
[1748316129159,21.03786474,173.39,173.36,34.58]
[1748316129647,18.64964886,173.38,173.33,26.0]
[1748316129845,2.30720424,173.37,173.33,47.03786474]
[1748316130047,2.30720424,173.37,173.34,34.58]
[1748316130579,2.30720424,173.37,173.35,34.58]
[1748316130793,2.30720424,173.37,173.33,57.22391462]
[1748316131278,2.30720424,173.37,173.34,34.58]
[1748316131770,33.53111886,173.37,173.34,34.58]
[1748316131945,33.53111886,173.37,173.33,26.0]
[1748316132151,33.53111886,173.37,173.34,34.58]
[1748316132777,49.87356348,173.36,173.31,130.48391462]
[1748316133080,31.22391462,173.35,173.33,34.58]
[1748316133373,31.22391462,173.35,173.31,59.0]
[1748316133570,31.22391462,173.35,173.32,34.58]
[1748316133767,2.30760355,173.34,173.32,34.58]
[1748316134760,18.64964886,173.33,173.3,26.0]
[1748316135083,2.30760355,173.34,173.31,65.80391462]
[1748316135257,2.30760355,173.34,173.31,34.58]
[1748316135575,2.30760355,173.34,173.31,65.80391462]
[1748316135782,2.30760355,173.34,173.32,34.6]
[1748316137066,2.30747043,173.35,173.32,34.6]
[1748316138691,20.9569996,173.36,173.32,65.82391462]
[1748316138862,2.30735074,173.36,173.34,31.22391462]
[1748316139666,2.30735074,173.36,173.34,30.72391462]
[1748316140077,2.30735074,173.36,173.35,34.6]
[1748316141101,2.30720424,173.37,173.35,34.6]
[1748316141308,2.30667204,173.41,173.36,31.22391462]
[1748316141474,18.64964886,173.4,173.37,31.22391462]
[1748316141796,18.64964886,173.4,173.38,34.6]
[1748316143401,2.30693811,173.39,173.38,34.6]
[1748316144286,2.30693811,173.39,173.33,85.0]
[1748316144287,18.64964886,173.38,173.35,34.6]
[1748316145502,2.30720424,173.37,173.35,34.6]
[1748316145795,2.30720424,173.37,173.35,65.82391462]
[1748316147808,18.64964886,173.36,173.33,85.0]
[1748316148008,18.64964886,173.33,173.26,31.22391462]
[1748316148308,31.22391462,173.31,173.26,31.22391462]
[1748316148609,18.64964886,173.31,173.27,31.22391462]
[1748316148921,2.30813618,173.3,173.27,31.22391462]
[1748316149413,2.30813618,173.3,173.26,31.22391462]
[1748316149789,2.30813618,173.3,173.24,34.6]
[1748316149994,31.22391462,173.29,173.25,34.6]
[1748316150300,31.22391462,173.29,173.24,65.82391462]
[1748316150816,2.30829217,173.29,173.25,31.22391462]
[1748316151621,2.30829217,173.29,173.25,65.82391462]
[1748316152118,33.53208077,173.3,173.25,65.82391462]
[1748316152526,18.64964886,173.29,173.23,27.5916]
[1748316152724,18.64964886,173.29,173.25,31.22391462]
[1748316152896,2.30840258,173.28,173.25,31.22391462]
[1748316153095,2.30840258,173.28,173.24,34.6]
[1748316153316,2.30840258,173.28,173.24,65.82391462]
[1748316153507,2.30840258,173.28,173.24,31.22391462]
[1748316153809,5.76881326,173.35,173.23,60.6]
[1748316154021,31.22391462,173.3,173.23,119.6]
[1748316154205,31.22391462,173.3,173.23,125.37264275]
[1748316154927,52.18183285,173.29,173.23,119.6]
[1748316156034,42.05373645,173.29,173.25,21.09581822]
[1748316157541,20.95791823,173.29,173.26,21.09581822]
[1748316162964,42.05373645,173.29,173.25,21.09581822]
[1748316163178,42.05373645,173.29,173.23,80.09581822]
[1748316163179,21.09581822,173.27,173.23,80.09581822]
[1748316163851,39.74546708,173.28,173.23,80.09581822]
[1748316165458,2.30853581,173.27,173.23,80.09581822]
[1748316166862,23.40435403,173.27,173.23,80.09581822]
[1748316168059,2.30853581,173.27,173.23,80.09581822]
[1748316168966,2.30853581,173.27,173.23,21.09581822]
[1748316170085,18.64964886,173.31,173.26,21.09581822]
[1748316170282,21.09581822,173.29,173.22,93.62]
[1748316170786,21.09581822,173.29,173.25,21.09581822]
[1748316171584,2.30840258,173.28,173.25,21.09581822]
[1748316174477,20.95738554,173.33,173.27,21.09581822]
[1748316174777,18.64964886,173.31,173.28,21.09581822]
[1748316174979,18.64964886,173.31,173.25,34.62]
[1748316175185,39.74546708,173.3,173.26,21.09581822]
[1748316175365,39.74546708,173.3,173.25,34.62]
[1748316175566,18.64964886,173.3,173.26,21.09581822]
[1748316176063,18.64964886,173.3,173.27,21.09581822]
[1748316176259,18.64964886,173.31,173.27,21.09581822]
[1748316176463,2.30813618,173.3,173.27,21.09581822]
[1748316177072,2.30813618,173.3,173.28,21.09581822]
[1748316177984,2.30813618,173.3,173.25,34.62]
[1748316177985,2.30813618,173.3,173.29,21.09581822]
[1748316178194,2.30813618,173.3,173.27,21.09581822]
[1748316178884,2.308003,173.31,173.27,21.09581822]
[1748316181690,2.308003,173.31,173.28,21.09581822]
[1748316182492,2.308003,173.31,173.27,21.09581822]
[1748316184299,8.0780105,173.31,173.27,21.09581822]
[1748316184490,39.74546708,173.3,173.25,114.71581822]
[1748316185314,18.64964886,173.3,173.26,21.09581822]
[1748316185502,18.64964886,173.3,173.27,21.09581822]
[1748316186310,2.30826937,173.29,173.27,21.09581822]
[1748316190208,2.30826937,173.29,173.26,21.09581822]
[1748316191611,2.30826937,173.29,173.27,21.09581822]
[1748316192317,2.30826937,173.29,173.26,21.09581822]
[1748316192618,5.62051458,173.29,173.26,21.09581822]
[1748316195427,2.30826937,173.29,173.26,21.09581822]
[1748316197502,2.30826937,173.29,173.25,114.71581822]
[1748316197503,8.0789428,173.29,173.25,114.71581822]
[1748316197727,3.31573438,173.28,173.25,80.09581822]
[1748316199437,2.30853581,173.27,173.25,59.0]
[1748316199640,2.30853581,173.27,173.25,80.09581822]
[1748316201661,2.30853581,173.27,173.25,21.09581822]
[1748316202086,2.30853581,173.27,173.26,21.09581822]
[1748316202260,2.30853581,173.27,173.24,93.62]
[1748316202453,2.30853581,173.27,173.26,21.09581822]
[1748316202982,8.0789428,173.29,173.26,21.09581822]
[1748316203993,8.0789428,173.29,173.24,93.62]
[1748316204196,8.0789428,173.29,173.25,21.09581822]
[1748316204775,8.0789428,173.29,173.26,21.09581822]
[1748316205077,2.30826937,173.29,173.27,21.09581822]
[1748316205288,2.30826937,173.29,173.26,21.09581822]
[1748316205699,2.30826937,173.29,173.25,21.09581822]
[1748316206070,5.6240585,173.29,173.25,21.09581822]
[1748316207489,5.6240585,173.29,173.25,80.09581822]
[1748316207706,5.6240585,173.29,173.26,21.09581822]
[1748316207986,5.6240585,173.29,173.27,21.09581822]
[1748316208191,5.6240585,173.29,173.27,55.71581822]
[1748316209090,5.6240585,173.29,173.27,34.62]
[1748316210267,2.30826937,173.29,173.27,34.62]
[1748316212878,5.62511269,173.29,173.27,34.62]
[1748316215088,3.31684332,173.28,173.27,34.62]
[1748316215693,5.6252459,173.28,173.27,34.62]
[1748316215880,5.6252459,173.28,173.25,93.62]
[1748316216078,3.31684332,173.28,173.27,47.09581822]
[1748316216596,3.31684332,173.3,173.27,47.09581822]
[1748316216891,5.6249795,173.3,173.28,55.71581822]
[1748316217071,5.6249795,173.3,173.28,34.62]
[1748316218185,3.31684332,173.29,173.28,34.62]
[1748316218580,3.31684332,173.29,173.27,21.09581822]
[1748316219697,2.30813618,173.3,173.27,21.09581822]
[1748316220099,18.64964886,173.3,173.26,34.62]
[1748316220398,39.74546708,173.3,173.26,55.71581822]
[1748316220903,39.74546708,173.3,173.26,34.62]
[1748316221286,2.30826937,173.29,173.26,34.62]
[1748316221898,2.30826937,173.29,173.24,34.62]
[1748316221899,39.74546708,173.28,173.24,34.62]
[1748316222901,3.31865597,173.27,173.23,80.09581822]
[1748316223203,3.31865597,173.27,173.24,34.62]
[1748316223576,2.30866905,173.26,173.24,34.62]
[1748316224094,2.30866905,173.26,173.22,85.0]
[1748316224300,2.30866905,173.26,173.23,55.71581822]
[1748316224772,2.30853581,173.27,173.23,55.71581822]
[1748316225208,2.30853581,173.27,173.23,34.62]
[1748316225497,2.30853581,173.27,173.23,21.09581822]
[1748316225693,2.30853581,173.27,173.24,21.09581822]
[1748316225904,3.31776649,173.26,173.24,21.09581822]
[1748316226487,3.31776649,173.26,173.22,81.71581822]
[1748316226684,2.3088023,173.25,173.22,60.62]
[1748316227274,2.3088023,173.25,173.19,60.5353]
[1748316227275,8.08080807,173.25,173.19,60.5353]
[1748316227504,29.17662629,173.25,173.2,60.62]
[1748316227800,18.64964886,173.24,173.2,55.71581822]
[1748316227987,18.64964886,173.24,173.19,60.5353]
[1748316227988,39.74546708,173.24,173.19,80.09581822]
[1748316228188,21.09581822,173.23,173.19,80.09581822]
[1748316228789,2.30920217,173.22,173.19,80.09581822]
[1748316228985,5.62520502,173.22,173.19,80.09581822]
[1748316229504,5.62520502,173.22,173.2,21.09581822]
[1748316229679,3.31600285,173.22,173.21,21.09581822]
[1748316229883,3.31600285,173.22,173.21,55.71581822]
[1748316230082,2.3089609,173.24,173.21,55.71581822]
[1748316230302,2.3089609,173.24,173.23,21.09581822]
[1748316231603,2.3088023,173.25,173.23,21.09581822]
[1748316234918,2.3088023,173.25,173.22,21.09581822]
[1748316238881,2.3088023,173.25,173.23,21.09581822]
[1748316239119,2.3088023,173.25,173.22,21.09581822]
[1748316239613,2.3088023,173.25,173.21,93.62]
[1748316239816,18.64964886,173.24,173.21,59.0]
[1748316239987,18.64964886,173.24,173.2,21.09581822]
[1748316240522,18.64964886,173.24,173.21,21.09581822]
[1748316240691,18.64964886,173.24,173.22,21.09581822]
[1748316240893,2.30906886,173.23,173.22,21.09581822]
[1748316242089,2.30906886,173.23,173.21,21.09581822]
[1748316242411,2.3088023,173.25,173.21,21.09581822]
[1748316242617,23.40462052,173.25,173.21,21.09581822]
[1748316242783,23.40462052,173.25,173.2,34.62]
[1748316242983,23.40462052,173.25,173.21,21.09581822]
[1748316244316,18.64964886,173.24,173.21,21.09581822]
[1748316244511,21.09581822,173.23,173.19,21.09581822]
[1748316244704,18.64964886,173.24,173.2,21.09581822]
[1748316245510,18.64964886,173.24,173.21,21.09581822]
[1748316245706,2.3088023,173.25,173.22,21.09581822]
[1748316246710,2.3088023,173.25,173.23,21.09581822]
[1748316248515,2.30866905,173.26,173.24,21.09581822]
[1748316249903,2.30866905,173.26,173.24,13.50276529]
[1748316250917,2.30853581,173.27,173.24,13.50276529]
[1748316251813,15.8113011,173.27,173.23,13.50276529]
[1748316252921,2.3088023,173.25,173.22,34.62]
[1748316253096,2.3088023,173.25,173.22,48.12276529]
[1748316253907,2.3088023,173.25,173.22,55.72191776]
[1748316254308,2.3088023,173.25,173.23,21.10191776]
[1748316255328,2.30866905,173.26,173.24,21.10191776]
[1748316256226,2.30853581,173.27,173.24,21.10191776]
[1748316258722,18.64964886,173.24,173.2,59.0]
[1748316259018,18.64964886,173.24,173.2,80.10191776]
[1748316259226,18.64964886,173.24,173.21,21.10191776]
[1748316259423,3.31095019,173.25,173.2,80.10191776]
[1748316259924,18.64964886,173.24,173.2,80.10191776]
[1748316260111,39.75156662,173.24,173.2,59.0]
[1748316260725,2.30906886,173.23,173.2,59.0]
[1748316261613,2.30906886,173.23,173.2,80.10191776]
[1748316263633,2.30906886,173.23,173.2,21.10191776]
[1748316264331,5.62001905,173.23,173.2,21.10191776]
[1748316264623,5.62001905,173.23,173.19,119.62]
[1748316264833,5.62001905,173.23,173.2,21.10191776]
[1748316266417,2.30906886,173.23,173.2,21.10191776]
[1748316267630,2.30906886,173.23,173.19,140.72191776]
[1748316267832,23.41098662,173.23,173.19,55.72191776]
[1748316269635,23.41098662,173.23,173.19,34.62]
[1748316271942,2.30933548,173.21,173.17,26.0]
[1748316272123,2.30933548,173.21,173.18,34.62]
[1748316272917,2.30933548,173.21,173.17,81.72191776]
[1748316273413,29.18459196,173.21,173.17,47.10191776]
[1748316273732,21.10191776,173.2,173.16,114.72191776]
[1748316274036,13.51521927,173.2,173.16,107.13521927]
[1748316274550,13.51521927,173.2,173.16,72.51521927]
[1748316274919,2.30960217,173.19,173.16,107.13521927]
[1748316275613,2.30960217,173.19,173.17,13.51521927]
[1748316275810,2.30960217,173.19,173.16,93.62]
[1748316276041,2.30960217,173.19,173.17,13.51521927]
[1748316276749,2.30946882,173.2,173.18,13.51521927]
[1748316277239,2.30946882,173.2,173.17,48.13521927]
[1748316277736,2.30946882,173.2,173.17,13.51521927]
[1748316278638,2.30946882,173.2,173.17,72.51521927]
[1748316280240,2.30946882,173.2,173.18,13.51521927]
[1748316280542,2.30946882,173.2,173.17,72.51521927]
[1748316281133,15.82468809,173.2,173.17,93.64]
[1748316281315,15.82468809,173.2,173.17,59.0]
[1748316283256,15.82468809,173.2,173.16,34.64]
[1748316285050,13.51521927,173.19,173.15,26.0]
[1748316285248,13.51521927,173.19,173.15,74.15521927]
[1748316285637,13.51521927,173.19,173.15,48.15521927]
[1748316285817,21.59836014,173.2,173.15,48.15521927]
[1748316286627,13.51521927,173.19,173.15,13.51521927]
[1748316286828,13.51521927,173.19,173.15,34.64]
[1748316287248,2.30973553,173.18,173.14,13.51521927]
[1748316287455,2.30973553,173.18,173.15,34.64]
[1748316290287,32.16486813,173.19,173.15,34.64]
[1748316291856,32.16486813,173.19,173.15,48.15521927]
[1748316291857,18.64964886,173.19,173.15,48.15521927]
[1748316292251,2.30973553,173.18,173.15,48.15521927]
[1748316293253,2.30973553,173.18,173.15,13.51521927]
[1748316293427,2.30973553,173.18,173.16,34.64]
[1748316296842,2.30973553,173.18,173.15,13.51521927]
[1748316297042,2.30973553,173.18,173.15,48.15521927]
[1748316297552,2.30973553,173.18,173.11,47.8873]
[1748316297771,2.30973553,173.18,173.14,39.51521927]
[1748316300667,2.30973553,173.18,173.15,13.51521927]
[1748316301253,2.30973553,173.18,173.15,48.15521927]
[1748316302168,21.59929363,173.18,173.11,40.0]
[1748316302457,21.59929363,173.18,173.13,13.51521927]
[1748316302659,21.59929363,173.18,173.14,13.51521927]
[1748316303036,2.30973553,173.18,173.15,13.51521927]
[1748316303654,2.30973553,173.18,173.16,48.15521927]
[1748316304461,2.30960217,173.19,173.16,48.15521927]
[1748316306379,2.30960217,173.19,173.17,13.51521927]
[1748316307576,2.30946882,173.2,173.17,13.51521927]
[1748316310279,5.62633487,173.2,173.17,13.51521927]
[1748316312973,19.14155414,173.2,173.16,48.15521927]
[1748316313279,32.16486813,173.19,173.16,34.64]
[1748316313455,35.48173418,173.19,173.16,34.64]
[1748316313778,35.48173418,173.19,173.15,13.51521927]
[1748316313961,35.48173418,173.19,173.15,48.15521927]
[1748316314976,2.30973553,173.18,173.15,48.15521927]
[1748316315272,2.30973553,173.18,173.15,34.64]
[1748316315958,2.30973553,173.18,173.15,48.15521927]
[1748316316383,2.30973553,173.18,173.15,13.51521927]
[1748316316696,2.30973553,173.18,173.15,48.15521927]
[1748316317979,2.30946882,173.2,173.17,13.51521927]
[1748316318279,2.30946882,173.2,173.18,48.15521927]
[1748316318654,2.30946882,173.2,173.18,34.64]
[1748316318971,2.30946882,173.2,173.18,48.15521927]
[1748316319380,2.30933548,173.21,173.18,48.15521927]
[1748316320377,2.30933548,173.21,173.2,13.51521927]
[1748316320686,13.51521927,173.24,173.2,13.51521927]
[1748316320687,4.12257025,173.24,173.2,13.51521927]
[1748316320858,4.12257025,173.24,173.23,13.51521927]
[1748316323091,2.30878543,173.26,173.23,13.51521927]
[1748316323259,2.30878543,173.26,173.25,13.51521927]
[1748316323464,2.30878543,173.26,173.25,48.15521927]
[1748316323989,2.30853581,173.27,173.25,55.73077714]
[1748316324154,2.30853581,173.27,173.26,21.09077714]
[1748316324991,8.07914444,173.29,173.26,21.09077714]
[1748316325189,8.07914444,173.29,173.27,21.09077714]
[1748316325585,8.07914444,173.29,173.26,21.09077714]
[1748316325791,8.07914444,173.29,173.25,55.73077714]
[1748316326094,8.07914444,173.29,173.26,21.09077714]
[1748316326279,8.07914444,173.29,173.27,21.09077714]
[1748316326789,8.07914444,173.29,173.26,21.09077714]
[1748316327986,18.64964886,173.28,173.25,55.73077714]
[1748316328194,18.64964886,173.28,173.25,34.64]
[1748316329195,8.07987533,173.27,173.24,55.71077714]
[1748316329600,18.64964886,173.26,173.23,26.0]
[1748316329775,18.64964886,173.26,173.23,34.62]
[1748316330091,18.64964886,173.26,173.23,55.71077714]
[1748316330297,18.64964886,173.26,173.23,21.09077714]
[1748316331696,2.3088023,173.25,173.23,21.09077714]
[1748316331993,2.3088023,173.25,173.22,55.71077714]
[1748316332375,2.3088023,173.25,173.22,34.62]
[1748316332565,2.3088023,173.25,173.22,55.71077714]